fUST/lending_fUST_20250816
["ID","MTS","AMOUNT","RATE_DAILY","PERIOD"]
[379481589,1755312640134,-480.0,0.00021917,3]
[379481591,1755312640143,-480.0,0.00021917,3]
[379481593,1755312640152,-480.0,0.00021917,3]
[379481595,1755312640162,-480.0,0.00021917,3]
[379481597,1755312640171,-1075.94,0.00021917,3]
[379481599,1755312640181,-480.0,0.00021917,3]
[379481601,1755312640194,-480.0,0.00021917,3]
[379481604,1755312640203,-480.0,0.00021917,3]
[379481606,1755312640213,-480.0,0.00021917,3]
[379481608,1755312640223,-2445.28,0.00021917,3]
[379481610,1755312640234,-480.0,0.00021917,3]
[379481612,1755312640244,-480.0,0.00021917,3]
[379481614,1755312640254,-839.22,0.00021917,3]
[379481616,1755312640266,-388.70216837,0.00021917,3]
[379481618,1755312640276,-777.55,0.00021917,3]
[379481620,1755312640286,-460.0,0.00021917,3]
[379481622,1755312640296,-480.0,0.00021917,3]
[379481624,1755312640305,-480.0,0.00021917,3]
[379481626,1755312640315,-480.0,0.00021917,3]
[379481628,1755312640325,-480.0,0.00021917,3]
[379481630,1755312640334,-483.71013519,0.00021917,2]
[379481632,1755312640343,-480.0,0.00021917,3]
[379481633,1755312640354,-480.0,0.00021917,3]
[379481635,1755312640363,-3480.25,0.00021917,3]
[379481637,1755312640372,-480.0,0.00021917,3]
[379481639,1755312640383,-464.13748219,0.00021917,3]
[379481641,1755312640392,-5768.24,0.00021917,3]
[379481643,1755312640401,-480.0,0.00021917,3]
[379481645,1755312640410,-662.37,0.00021917,3]
[379481647,1755312640419,-480.0,0.00021917,3]
[379481649,1755312640430,-480.0,0.00021917,3]
[379481651,1755312640439,-480.0,0.00021917,3]
[379481653,1755312640448,-480.0,0.00021917,3]
[379481655,1755312640457,-480.0,0.00021917,3]
[379481657,1755312640467,-480.0,0.00021917,3]
[379481659,1755312640477,-665.3434124,0.00021932,2]
[379481661,1755312640486,-500.0,0.00021983,2]
[379481663,1755312640496,-12287.99,0.00022,7]
[379481665,1755312640505,-3610.78,0.00022,7]
[379481667,1755312640514,-417.15472785,0.00022,7]
[379481669,1755312640523,-505.63349145,0.00022021,2]
[379481671,1755312640533,-504.29268211,0.00022021,2]
[379481673,1755312640542,-1008.04807521,0.00022021,2]
[379481675,1755312640551,-503.46926157,0.00022021,2]
[379481677,1755312640560,-902.79371955,0.00022169,2]
[379481679,1755312640570,-602.57,0.00022191,3]
[379481681,1755312640579,-480.0,0.00022191,3]
[379481683,1755312640588,-480.0,0.00022191,3]
[379481685,1755312640598,-480.0,0.00022191,3]
[379481687,1755312640607,-480.0,0.00022191,3]
[379481689,1755312640617,-223.9196207,0.00022191,3]
[379481691,1755312640626,-1075.94,0.00022191,3]
[379481693,1755312640635,-480.0,0.00022191,3]
[379481695,1755312640644,-480.0,0.00022191,3]
[379481697,1755312640653,-444.16754783,0.00022191,3]
[379481699,1755312640663,-480.0,0.00022191,3]
[379481702,1755312640673,-2445.28,0.00022191,3]
[379481703,1755312640684,-480.0,0.00022191,3]
[379481705,1755312640694,-480.0,0.00022191,3]
[379481707,1755312640703,-839.22,0.00022191,3]
[379481709,1755312640712,-777.55,0.00022191,3]
[379481711,1755312640722,-480.0,0.00022191,3]
[379481713,1755312640731,-480.0,0.00022191,3]
[379481715,1755312640740,-450.30691364,0.00022191,3]
[379481717,1755312640750,-480.0,0.00022191,3]
[379481719,1755312640759,-480.0,0.00022191,3]
[379481721,1755312640768,-480.0,0.00022191,3]
[379481723,1755312640778,-3480.25,0.00022191,3]
[379481725,1755312640787,-480.0,0.00022191,3]
[379481727,1755312640797,-480.0,0.00022191,3]
[379481729,1755312640806,-5768.24,0.00022191,3]
[379481731,1755312640815,-662.37,0.00022191,3]
[379481733,1755312640825,-480.0,0.00022191,3]
[379481735,1755312640835,-480.0,0.00022191,3]
[379481737,1755312640844,-480.0,0.00022191,3]
[379481739,1755312640853,-480.0,0.00022191,3]
[379481741,1755312640862,-440.8697933,0.00022191,3]
[379481743,1755312640872,-480.0,0.00022191,3]
[379481745,1755312640881,-626.89994192,0.00022224,2]
[379481747,1755312640891,-505.99678611,0.00022257,2]
[379481749,1755312640901,-665.3434124,0.0002244,2]
[379481751,1755312640911,-3370.50828189,0.00022465,2]
[379481753,1755312640921,-602.57,0.00022465,3]
[379481756,1755312640931,-480.0,0.00022465,3]
[379481757,1755312640941,-480.0,0.00022465,3]
[379481760,1755312640955,-480.0,0.00022465,3]
[379481762,1755312640965,-480.0,0.00022465,3]
[379481764,1755312640975,-1075.94,0.00022465,3]
[379481766,1755312640985,-423.50807267,0.00022465,3]
[379481768,1755312640994,-480.0,0.00022465,3]
[379481769,1755312641003,-480.0,0.00022465,3]
[379481771,1755312641013,-2445.28,0.00022465,3]
[379481773,1755312641022,-480.0,0.00022465,3]
[379481775,1755312641031,-421.2257972,0.00022465,3]
[379481777,1755312641040,-839.22,0.00022465,3]
[379481779,1755312641049,-777.55,0.00022465,3]
[379481781,1755312641058,-480.0,0.00022465,3]
[379481783,1755312641067,-426.66887443,0.00022465,3]
[379481785,1755312641077,-480.0,0.00022465,3]
[379481787,1755312641086,-480.0,0.00022465,3]
[379481789,1755312641095,-480.0,0.00022465,3]
[379481791,1755312641106,-3480.25,0.00022465,3]
[379481793,1755312641115,-428.58545011,0.00022465,3]
[379481795,1755312641124,-480.0,0.00022465,3]
[379481797,1755312641133,-5768.24,0.00022465,3]
[379481799,1755312641143,-662.37,0.00022465,3]
[379481801,1755312641152,-480.0,0.00022465,3]
[379481803,1755312641160,-434.74149866,0.00022465,3]
[379481805,1755312641171,-480.0,0.00022465,3]
[379481807,1755312641181,-480.0,0.00022465,3]
[379481809,1755312641192,-480.0,0.00022465,3]
[379481811,1755312641202,-165.683332,0.00022505,2]
[379481813,1755312641211,-602.57,0.00022739,3]
[379481815,1755312641220,-480.0,0.00022739,3]
[379481817,1755312641230,-480.0,0.00022739,3]
[379481819,1755312641240,-480.0,0.00022739,3]
[379481821,1755312641249,-480.0,0.00022739,3]
[379481823,1755312641258,-1075.94,0.00022739,3]
[379481825,1755312641268,-463.26239707,0.00022739,3]
[379481827,1755312641277,-480.0,0.00022739,3]
[379481829,1755312641287,-2445.28,0.00022739,3]
[379481831,1755312641297,-480.0,0.00022739,3]
[379481833,1755312641306,-839.22,0.00022739,3]
[379481835,1755312641316,-777.55,0.00022739,3]
[379481837,1755312641325,-480.0,0.00022739,3]
[379481839,1755312641334,-401.33556272,0.00022739,3]
[379481841,1755312641343,-480.0,0.00022739,3]
[379481843,1755312641353,-480.0,0.00022739,3]
[379481845,1755312641362,-3480.25,0.00022739,3]
[379481847,1755312641371,-627.86870737,0.00022739,3]
[379481849,1755312641381,-5768.24,0.00022739,3]
[379481851,1755312641391,-662.37,0.00022739,3]
[379481853,1755312641401,-401.27315417,0.00022739,3]
[379481855,1755312641410,-480.0,0.00022739,3]
[379481857,1755312641419,-480.0,0.00022739,3]
[379481859,1755312641429,-405.0399947,0.00022739,3]
[379481861,1755312641439,-1235.64,0.00022796,3]
[379481863,1755312641448,-617.82,0.00022796,3]
[379481865,1755312641457,-308.9,0.00022796,3]
[379481867,1755312641466,-233.06,0.00022933,2]
[379481869,1755312641475,-665.3434124,0.00022948,2]
[379481871,1755312641485,-902.79371955,0.00022965,2]
[379481873,1755312641494,-602.57,0.00023013,3]
[379481875,1755312641504,-480.0,0.00023013,3]
[379481877,1755312641513,-480.0,0.00023013,3]
[379481879,1755312641522,-480.0,0.00023013,3]
[379481881,1755312641531,-480.0,0.00023013,3]
[379481883,1755312641540,-1075.94,0.00023013,3]
[379481885,1755312641549,-615.50331969,0.00023013,3]
[379481887,1755312641559,-2445.28,0.00023013,3]
[379481889,1755312641568,-480.0,0.00023013,3]
[379481891,1755312641577,-839.22,0.00023013,3]
[379481893,1755312641587,-777.55,0.00023013,3]
[379481895,1755312641596,-160.0,0.00023013,3]
[379481897,1755312641605,-480.0,0.00023013,3]
[379481899,1755312641614,-480.0,0.00023013,3]
[379481901,1755312641623,-528.38334358,0.00023013,3]
[379481903,1755312641633,-480.0,0.00023013,3]
[379481905,1755312641642,-3480.25,0.00023013,3]
[379481907,1755312641651,-662.37,0.00023013,3]
[379481909,1755312641661,-5768.24,0.00023013,3]
[379481911,1755312641670,-480.0,0.00023013,3]
[379481913,1755312641679,-480.0,0.00023013,3]
[379481915,1755312641689,-626.89994192,0.00023116,2]
[379481917,1755312641698,-602.57,0.00023287,3]
[379481919,1755312641707,-480.0,0.00023287,3]
[379481921,1755312641716,-367.28390684,0.00023287,3]
[379481923,1755312641725,-480.0,0.00023287,3]
[379481925,1755312641735,-480.0,0.00023287,3]
[379481927,1755312641744,-1075.94,0.00023287,3]
[379481929,1755312641753,-2445.28,0.00023287,3]
[379481931,1755312641763,-480.0,0.00023287,3]
[379481933,1755312641772,-839.22,0.00023287,3]
[379481935,1755312641783,-777.55,0.00023287,3]
[379481937,1755312641793,-361.54289001,0.00023287,3]
[379481939,1755312641803,-480.0,0.00023287,3]
[379481941,1755312641812,-480.0,0.00023287,3]
[379481943,1755312641821,-3480.25,0.00023287,3]
[379481945,1755312641832,-662.37,0.00023287,3]
[379481947,1755312641841,-5768.24,0.00023287,3]
[379481949,1755312641851,-414.17030255,0.00023287,3]
[379481951,1755312641860,-480.0,0.00023287,3]
[379481953,1755312641870,-787.0,0.00023403,2]
[379481955,1755312641879,-294.50621511,0.0002343,2]
[379481957,1755312641889,-480.0,0.00023456,3]
[379481959,1755312641899,-480.0,0.00023456,3]
[379481961,1755312641908,-480.0,0.00023456,3]
[379481963,1755312641917,-480.0,0.00023456,3]
[379481965,1755312641927,-480.0,0.00023456,3]
[379481967,1755312641937,-480.0,0.00023456,3]
[379481969,1755312641946,-480.0,0.00023456,3]
[379481971,1755312641955,-480.0,0.00023456,3]
[379481973,1755312641965,-480.0,0.00023456,3]
[379481976,1755312641976,-480.0,0.00023456,3]
[379481977,1755312641985,-480.0,0.00023456,3]
[379481979,1755312641995,-480.0,0.00023456,3]
[379481981,1755312642006,-460.75977556,0.00023456,3]
[379481983,1755312642015,-480.0,0.00023456,3]
[379481985,1755312642024,-480.0,0.00023456,3]
[379482001,1755312642160,-480.0,0.00023456,3]
[379482003,1755312642170,-480.0,0.00023456,3]
[379482005,1755312642179,-480.0,0.00023456,3]
[379482007,1755312642190,-480.0,0.00023456,3]
[379482008,1755312642200,-786.73,0.00023456,3]
[379482010,1755312642209,-480.0,0.00023456,3]
[379482012,1755312642218,-480.0,0.00023456,3]
[379482014,1755312642227,-480.0,0.00023456,3]
[379482016,1755312642238,-617.1,0.00023456,3]
[379482018,1755312642249,-480.0,0.00023456,3]
[379482021,1755312642259,-480.0,0.00023456,3]
[379482023,1755312642270,-480.0,0.00023456,3]
[379482025,1755312642280,-480.0,0.00023456,3]
[379482027,1755312642289,-665.3434124,0.00023456,2]
[379482029,1755312642299,-602.57,0.00023561,3]
[379482031,1755312642308,-480.0,0.00023561,3]
[379482033,1755312642317,-480.0,0.00023561,3]
[379482035,1755312642326,-480.0,0.00023561,3]
[379482037,1755312642335,-1075.94,0.00023561,3]
[379482038,1755312642344,-2445.28,0.00023561,3]
[379482041,1755312642353,-480.0,0.00023561,3]
[379482043,1755312642363,-839.22,0.00023561,3]
[379482045,1755312642378,-777.55,0.00023561,3]
[379482047,1755312642388,-480.0,0.00023561,3]
[379482049,1755312642398,-480.0,0.00023561,3]
[379482051,1755312642407,-3480.25,0.00023561,3]
[379482053,1755312642420,-662.37,0.00023561,3]
[379482055,1755312642430,-5768.24,0.00023561,3]
[379482057,1755312642439,-480.0,0.00023561,3]
[379482059,1755312642448,-480.0,0.00023592,3]
[379482061,1755312642457,-480.0,0.00023592,3]
[379482063,1755312642467,-3532.23,0.00023592,3]
[379482065,1755312642475,-257.7488496,0.00023657,2]
[379482067,1755312642485,-480.0,0.0002373,3]
[379482069,1755312642494,-480.0,0.0002373,3]
[379482071,1755312642503,-480.0,0.0002373,3]
[379482073,1755312642514,-480.0,0.0002373,3]
[379482075,1755312642524,-480.0,0.0002373,3]
[379482077,1755312642533,-480.0,0.0002373,3]
[379482079,1755312642542,-480.0,0.0002373,3]
[379482081,1755312642552,-480.0,0.0002373,3]
[379482082,1755312642565,-480.0,0.0002373,3]
[379482085,1755312642574,-480.0,0.0002373,3]
[379482087,1755312642584,-480.0,0.0002373,3]
[379482088,1755312642593,-480.0,0.0002373,3]
[379482090,1755312642602,-480.0,0.0002373,3]
[379482092,1755312642611,-480.0,0.0002373,3]
[379482093,1755312642620,-480.0,0.0002373,3]
[379482095,1755312642630,-480.0,0.0002373,3]
[379482097,1755312642639,-480.0,0.0002373,3]
[379482099,1755312642648,-480.0,0.0002373,3]
[379482101,1755312642657,-786.73,0.0002373,3]
[379482102,1755312642666,-480.0,0.0002373,3]
[379482104,1755312642675,-480.0,0.0002373,3]
[379482106,1755312642684,-480.0,0.0002373,3]
[379482108,1755312642695,-617.1,0.0002373,3]
[379482109,1755312642704,-480.0,0.0002373,3]
[379482111,1755312642714,-480.0,0.0002373,3]
[379482113,1755312642724,-185.9898197,0.0002373,3]
[379482114,1755312642733,-480.0,0.0002373,3]
[379482116,1755312642742,-902.79371955,0.00023761,2]
[379482118,1755312642753,-602.57,0.00023835,3]
[379482120,1755312642762,-480.0,0.00023835,3]
[379482122,1755312642771,-480.0,0.00023835,3]
[379482123,1755312642781,-480.0,0.00023835,3]
[379482125,1755312642790,-1075.94,0.00023835,3]
[379482127,1755312642800,-2445.28,0.00023835,3]
[379482129,1755312642809,-480.0,0.00023835,3]
[379482130,1755312642819,-839.22,0.00023835,3]
[379482132,1755312642828,-777.55,0.00023835,3]
[379482134,1755312642837,-480.0,0.00023835,3]
[379482135,1755312642846,-480.0,0.00023835,3]
[379482137,1755312642858,-3480.25,0.00023835,3]
[379482139,1755312642868,-662.37,0.00023835,3]
[379482141,1755312642877,-5768.24,0.00023835,3]
[379482143,1755312642886,-480.0,0.00023835,3]
[379482144,1755312642896,-480.0,0.00023866,3]
[379482146,1755312642905,-480.0,0.00023866,3]
[379482148,1755312642916,-3532.23,0.00023866,3]
[379482150,1755312642926,-271.0256172,0.000239,2]
[379482151,1755312642936,-258342.54,0.000239,4]
[379482153,1755312642945,-665.3434124,0.00023964,2]
[379482155,1755312642954,-200.0,0.00023983,20]
[379482157,1755312642968,-200.0,0.00023983,20]
[379482159,1755312642977,-200.0,0.00023983,20]
[379482160,1755312642987,-200.0,0.00023983,20]
[379482162,1755312642997,-200.0,0.00023983,20]
[379482164,1755312643006,-200.0,0.00023983,20]
[379482165,1755312643015,-200.0,0.00023983,20]
[379482167,1755312643023,-200.0,0.00023983,20]
[379482169,1755312643032,-200.0,0.00023983,20]
[379482171,1755312643041,-200.0,0.00023983,20]
[379482173,1755312643050,-240.0,0.00023983,20]
[379482175,1755312643059,-843.58077381,0.00024,7]
[379482176,1755312643069,-216.80276362,0.00024,7]
[379482178,1755312643078,-232.11368524,0.00024,7]
[379482180,1755312643087,-160.0,0.00024,7]
[379482182,1755312643097,-528.38334358,0.00024,7]
[379482183,1755312643106,-500.0,0.00024,2]
[379482185,1755312643115,-480.0,0.00024004,3]
[379482187,1755312643124,-480.0,0.00024004,3]
[379482189,1755312643133,-480.0,0.00024004,3]
[379482191,1755312643142,-480.0,0.00024004,3]
[379482192,1755312643151,-480.0,0.00024004,3]
[379482194,1755312643161,-480.0,0.00024004,3]
[379482196,1755312643170,-480.0,0.00024004,3]
[379482198,1755312643179,-480.0,0.00024004,3]
[379482200,1755312643193,-480.0,0.00024004,3]
[379482202,1755312643202,-480.0,0.00024004,3]
[379482203,1755312643211,-480.0,0.00024004,3]
[379482205,1755312643221,-480.0,0.00024004,3]
[379482207,1755312643231,-480.0,0.00024004,3]
[379482209,1755312643240,-480.0,0.00024004,3]
[379482211,1755312643250,-480.0,0.00024004,3]
[379482212,1755312643260,-480.0,0.00024004,3]
[379482214,1755312643271,-480.0,0.00024004,3]
[379482216,1755312643281,-480.0,0.00024004,3]
[379482218,1755312643290,-786.73,0.00024004,3]
[379482220,1755312643299,-282.92837081,0.00024004,3]
[379482222,1755312643308,-480.0,0.00024004,3]
[379482223,1755312643319,-480.0,0.00024004,3]
[379482225,1755312643329,-617.1,0.00024004,3]
[379482227,1755312643338,-480.0,0.00024004,3]
[379482229,1755312643347,-480.0,0.00024004,3]
[379482231,1755312643356,-626.89994192,0.00024008,2]
[379482233,1755312643366,-602.57,0.00024109,3]
[379482234,1755312643376,-480.0,0.00024109,3]
[379482236,1755312643386,-480.0,0.00024109,3]
[379482237,1755312643395,-480.0,0.00024109,3]
[379482238,1755312643404,-1075.94,0.00024109,3]
[379482240,1755312643413,-2445.28,0.00024109,3]
[379482242,1755312643423,-308.86816174,0.00024109,3]
[379482243,1755312643432,-839.22,0.00024109,3]
[379482245,1755312643441,-777.55,0.00024109,3]
[379482247,1755312643451,-480.0,0.00024109,3]
[379482249,1755312643460,-480.0,0.00024109,3]
[379482251,1755312643470,-662.37,0.00024109,3]
[379482252,1755312643480,-3480.25,0.00024109,3]
[379482253,1755312643490,-5768.24,0.00024109,3]
[379482254,1755312643499,-290.84056042,0.00024109,3]
[379482255,1755312643509,-480.0,0.0002414,3]
[379482256,1755312643518,-480.0,0.0002414,3]
[379482257,1755312643529,-3532.23,0.0002414,3]
[379482258,1755312643538,-480.0,0.00024278,3]
[379482259,1755312643548,-480.0,0.00024278,3]
[379482260,1755312643557,-480.0,0.00024278,3]
[379482261,1755312643566,-480.0,0.00024278,3]
[379482262,1755312643575,-480.0,0.00024278,3]
[379482263,1755312643585,-480.0,0.00024278,3]
[379482264,1755312643594,-415.7382619,0.00024278,3]
[379482265,1755312643604,-409.93201444,0.00024278,3]
[379482266,1755312643613,-480.0,0.00024278,3]
[379482267,1755312643622,-401.42581393,0.00024278,3]
[379482268,1755312643631,-480.0,0.00024278,3]
[379482269,1755312643640,-480.0,0.00024278,3]
[379482270,1755312643650,-480.0,0.00024278,3]
[379482271,1755312643659,-480.0,0.00024278,3]
[379482272,1755312643668,-480.0,0.00024278,3]
[379482273,1755312643678,-480.0,0.00024278,3]
[379482274,1755312643687,-307.39811996,0.00024278,3]
[379482275,1755312643697,-480.0,0.00024278,3]
[379482276,1755312643707,-786.73,0.00024278,3]
[379482277,1755312643716,-480.0,0.00024278,3]
[379482278,1755312643725,-406.3650692,0.00024278,3]
[379482279,1755312643736,-617.1,0.00024278,3]
[379482280,1755312643745,-480.0,0.00024278,3]
[379482281,1755312643754,-480.0,0.00024278,3]
[379482282,1755312643763,-3610.78,0.000243,7]
[379482283,1755312643772,-151.0,0.000243,8]
[379482284,1755312643781,-602.57,0.00024383,3]
[379482285,1755312643790,-480.0,0.00024383,3]
[379482286,1755312643800,-480.0,0.00024383,3]
[379482287,1755312643809,-480.0,0.00024383,3]
[379482288,1755312643818,-1075.94,0.00024383,3]
[379482289,1755312643828,-2445.28,0.00024383,3]
[379482290,1755312643837,-839.22,0.00024383,3]
[379482291,1755312643847,-777.55,0.00024383,3]
[379482292,1755312643857,-480.0,0.00024383,3]
[379482293,1755312643867,-480.0,0.00024383,3]
[379482294,1755312643876,-662.37,0.00024383,3]
[379482295,1755312643887,-3480.25,0.00024383,3]
[379482296,1755312643896,-5768.24,0.00024383,3]
[379482297,1755312643906,-480.0,0.00024414,3]
[379482298,1755312643915,-480.0,0.00024414,3]
[379482299,1755312643925,-3532.23,0.00024414,3]
[379482300,1755312643934,-462.1417622,0.00024414,2]
[379482301,1755312643945,-528.38334358,0.00024433,2]
[379482302,1755312643954,-417.15472785,0.00024433,2]
[379482303,1755312643963,-160.0,0.00024433,2]
[379482304,1755312643972,-665.3434124,0.00024473,2]
[379482305,1755312643981,-480.0,0.00024498,3]
[379482306,1755312643990,-480.0,0.00024498,3]
[379482307,1755312644000,-480.0,0.00024498,3]
[379482308,1755312644009,-1000.0,0.00024498,3]
[379482309,1755312644018,-480.0,0.00024498,3]
[379482310,1755312644028,-480.0,0.00024498,3]
[379482311,1755312644037,-411.07781029,0.00024498,3]
[379482312,1755312644046,-480.0,0.00024498,3]
[379482313,1755312644055,-480.0,0.00024498,3]
[379482314,1755312644064,-480.0,0.00024498,3]
[379482315,1755312644073,-1798.56,0.00024498,3]
[379482316,1755312644083,-480.0,0.00024498,3]
[379482317,1755312644092,-480.0,0.00024498,3]
[379482318,1755312644101,-480.0,0.00024498,3]
[379482319,1755312644111,-480.0,0.00024498,3]
[379482320,1755312644127,-480.0,0.00024498,3]
[379482321,1755312644137,-480.0,0.00024498,3]
[379482322,1755312644147,-480.0,0.00024498,3]
[379482323,1755312644156,-480.0,0.00024498,3]
[379482324,1755312644165,-480.0,0.00024498,3]
[379482325,1755312644175,-480.0,0.00024498,3]
[379482326,1755312644185,-532.2882024,0.00024498,3]
[379482327,1755312644202,-480.0,0.00024498,3]
[379482328,1755312644224,-480.0,0.00024498,3]
[379482329,1755312644236,-163.8855355,0.00024498,3]
[379482330,1755312644247,-480.0,0.00024498,3]
[379482331,1755312644258,-480.0,0.00024498,3]
[379482332,1755312644268,-480.0,0.00024498,3]
[379482333,1755312644277,-480.0,0.00024498,3]
[379482334,1755312644287,-480.0,0.00024498,3]
[379482335,1755312644296,-480.0,0.00024498,3]
[379482336,1755312644305,-732.31,0.00024498,3]
[379482337,1755312644315,-480.0,0.00024498,3]
[379482338,1755312644324,-480.0,0.00024498,3]
[379482339,1755312644335,-480.0,0.00024498,3]
[379482340,1755312644345,-1264.51,0.00024498,3]
[379482341,1755312644354,-480.0,0.00024498,3]
[379482342,1755312644364,-6277.78,0.00024498,3]
[379482343,1755312644373,-460.35394778,0.00024498,3]
[379482344,1755312644383,-480.0,0.00024498,3]
[379482345,1755312644393,-480.0,0.00024498,3]
[379482346,1755312644402,-480.0,0.00024498,3]
[379482347,1755312644412,-480.0,0.00024498,3]
[379482348,1755312644547,-480.0,0.00024498,3]
[379482349,1755312644557,-480.0,0.00024498,3]
[379482350,1755312644567,-480.0,0.00024498,3]
[379482351,1755312644576,-261.43337461,0.00024545,2]
[379482352,1755312644588,-500.0,0.00024547,2]
[379482353,1755312644597,-480.0,0.00024552,3]
[379482354,1755312644606,-480.0,0.00024552,3]
[379482355,1755312644615,-480.0,0.00024552,3]
[379482356,1755312644624,-382.97798034,0.00024552,3]
[379482357,1755312644634,-480.0,0.00024552,3]
[379482358,1755312644644,-480.0,0.00024552,3]
[379482359,1755312644653,-480.0,0.00024552,3]
[379482360,1755312644662,-480.0,0.00024552,3]
[379482361,1755312644671,-480.0,0.00024552,3]
[379482362,1755312644681,-480.0,0.00024552,3]
[379482363,1755312644690,-480.0,0.00024552,3]
[379482364,1755312644699,-480.0,0.00024552,3]
[379482365,1755312644709,-480.0,0.00024552,3]
[379482366,1755312644718,-386.31285594,0.00024552,3]
[379482367,1755312644727,-786.73,0.00024552,3]
[379482368,1755312644737,-480.0,0.00024552,3]
[379482369,1755312644747,-617.1,0.00024552,3]
[379482370,1755312644756,-480.0,0.00024552,3]
[379482371,1755312644766,-480.0,0.00024552,3]
[379482372,1755312644776,-603.06448584,0.00024557,2]
[379482373,1755312644785,-902.79371955,0.00024557,2]
[379482374,1755312644795,-500.0,0.00024602,2]
[379482375,1755312644804,-422.53495811,0.00024647,2]
[379482376,1755312644814,-160.0,0.00024649,2]
[379482377,1755312644823,-460.45777275,0.00024654,3]
[379482378,1755312644833,-12378.94,0.00024654,3]
[379482379,1755312644843,-1077.19,0.00024654,3]
[379482380,1755312644852,-480.0,0.00024655,3]
[379482381,1755312644861,-480.0,0.00024655,3]
[379482382,1755312644871,-480.0,0.00024655,3]
[379482383,1755312644880,-480.0,0.00024656,3]
[379482384,1755312644889,-480.0,0.00024656,3]
[379482385,1755312644899,-732.31,0.00024656,3]
[379482386,1755312644908,-732.31,0.00024656,3]
[379482387,1755312644918,-732.31,0.00024656,3]
[379482388,1755312644927,-732.31,0.00024656,3]
[379482389,1755312644937,-732.31,0.00024656,3]
[379482390,1755312644947,-732.31,0.00024656,3]
[379482391,1755312644956,-732.31,0.00024656,3]
[379482392,1755312644966,-732.31,0.00024656,3]
[379482393,1755312644975,-732.31,0.00024656,3]
[379482394,1755312644984,-732.31,0.00024656,3]
[379482395,1755312644994,-732.31,0.00024656,3]
[379482396,1755312645003,-732.31,0.00024656,3]
[379482397,1755312645012,-732.31,0.00024656,3]
[379482398,1755312645021,-732.31,0.00024656,3]
[379482399,1755312645031,-732.31,0.00024656,3]
[379482400,1755312645040,-732.31,0.00024656,3]
[379482401,1755312645049,-732.31,0.00024656,3]
[379482402,1755312645058,-732.31,0.00024656,3]
[379482403,1755312645069,-732.31,0.00024656,3]
[379482404,1755312645079,-732.31,0.00024656,3]
[379482405,1755312645088,-732.31,0.00024656,3]
[379482406,1755312645098,-732.31,0.00024656,3]
[379482407,1755312645108,-732.53042549,0.00024656,3]
[379482408,1755312645117,-1264.51,0.00024656,3]
[379482409,1755312645127,-1264.51,0.00024656,3]
[379482410,1755312645136,-1264.51,0.00024656,3]
[379482411,1755312645145,-1264.51,0.00024656,3]
[379482412,1755312645154,-1264.51,0.00024656,3]
[379482413,1755312645163,-1264.51,0.00024656,3]
[379482414,1755312645172,-1264.51,0.00024656,3]
[379482415,1755312645182,-1264.51,0.00024656,3]